bitfinex-derivatives/quotes_ETHF0:USTF0_20250530
["timestamp","ask_amount","ask_price","bid_price","bid_amount"]
[1748585997649,0.75892,2634.5,2634.4,3.2078]
[1748585999451,0.75892,2634.5,2634.4,3.8314]
[1748586000556,0.75892,2634.5,2634.4,0.6236]
[1748586001750,0.75892,2634.5,2634.4,1.9414]
[1748586003253,0.76458379,2634.7,2634.5,0.75892]
[1748586003454,0.00569379,2634.7,2634.6,2.0767]
[1748586004754,0.6455,2635.3,2634.8,0.75881]
[1748586004953,0.6455,2635.3,2634.9,0.633]
[1748586005256,0.75878,2635.0,2634.9,0.633]
[1748586006858,0.94848,2635.0,2634.9,0.633]
[1748586007052,0.94848,2635.0,2634.9,1.39181]
[1748586007250,0.1897,2635.0,2634.9,1.39181]
[1748586008858,0.1897,2635.0,2634.9,5.12381]
[1748586012552,0.00569379,2635.2,2635.1,0.75875]
[1748586012752,0.00569379,2635.2,2635.1,3.96655]
[1748586021171,0.00569379,2635.2,2635.1,4.03648857]
[1748586022268,0.76441379,2635.2,2635.1,3.27773857]
[1748586022868,2.03051379,2635.2,2635.1,3.27773857]
[1748586023570,1.89708,2634.9,2634.4,3.2078]
[1748586023875,0.75892,2634.5,2634.4,3.2078]
[1748586025477,0.75892,2634.5,2634.4,3.96675]
[1748586025987,0.75892,2634.5,2634.4,0.75895]
[1748586026391,0.75892,2634.5,2634.3,2.07827]
[1748586027097,1.2642,2634.7,2634.2,3.73669379]
[1748586027297,0.75898,2634.3,2634.2,3.73669379]
[1748586027597,0.75898,2634.3,2634.2,0.00569379]
[1748586029293,0.7591,2633.9,2633.8,3.2078]
[1748586031190,0.75916,2633.7,2633.6,0.00569379]
[1748586031583,10.07281593,2633.7,2633.6,0.00569379]
[1748586031794,10.73781593,2633.7,2633.6,0.00569379]
[1748586033799,9.63196,2633.7,2633.6,0.00569379]
[1748586033998,4.63196,2633.7,2633.6,0.00569379]
[1748586034200,1.42416,2633.7,2633.6,0.00569379]
[1748586035193,1.42416,2633.7,2633.6,0.07563236]
[1748586036098,4.63196,2633.7,2633.6,0.07563236]
[1748586037402,13.36396,2633.7,2633.6,0.07563236]
[1748586037899,0.75924,2633.4,2633.3,0.10932]
[1748586038099,3.96704,2633.4,2633.3,0.10932]
[1748586038302,8.96704,2633.4,2633.3,0.10932]
[1748586038503,3.96704,2633.4,2633.3,0.10932]
[1748586039093,3.96704,2633.4,2632.4,5.1154]
[1748586039094,1.89825,2633.3,2632.4,5.1154]
[1748586039291,0.75949,2632.6,2632.4,5.1154]
[1748586039598,3.2078,2633.0,2632.7,0.75943]
[1748586039894,0.75936,2633.0,2632.8,2.0536]
[1748586041099,1.956,2633.2,2632.8,1.2942]
[1748586041300,0.75936,2633.0,2632.9,0.6224]
[1748586041493,0.75936,2633.0,2632.9,1.9191]
[1748586044896,0.75934,2633.1,2632.9,1.9191]
[1748586045199,0.75931,2633.2,2633.0,0.75936]
[1748586045394,0.75931,2633.2,2633.1,1.327]
[1748586045793,1.8714,2633.5,2633.1,1.327]
[1748586045989,0.6392,2633.5,2633.1,2.08632]
[1748586046198,0.6392,2633.5,2633.1,1.327]
[1748586046498,0.6392,2633.5,2632.9,4.9736]
[1748586046499,0.75927,2633.3,2633.2,1.2661]
[1748586047599,0.6392,2633.5,2633.2,1.2661]
[1748586047900,0.00569379,2633.6,2633.5,0.75921]
[1748586048093,0.76487379,2633.6,2633.5,2.5223]
[1748586048698,0.00569379,2633.6,2633.5,3.28151]
[1748586049502,0.00569379,2633.6,2633.5,3.35144857]
[1748586051503,0.76487379,2633.6,2633.5,2.59223857]
[1748586052005,0.00569379,2633.6,2633.5,3.35144857]
[1748586052402,0.76487379,2633.6,2633.5,3.35144857]
[1748586053004,0.00569379,2633.6,2633.5,3.35144857]
[1748586053206,0.76487379,2633.6,2633.5,2.59223857]
[1748586053414,0.76487379,2633.6,2633.5,1.96813857]
[1748586053708,0.76487379,2633.6,2633.5,0.06993857]
[1748586056308,6.98297379,2633.6,2633.5,0.06993857]
[1748586056503,12.43993224,2633.6,2633.5,0.06993857]
[1748586056906,12.43993224,2633.6,2633.5,8.57e-06]
[1748586061508,2.48883224,2633.6,2633.5,8.57e-06]
[1748586062096,3.77993224,2633.6,2633.5,8.57e-06]
[1748586062805,3.78107897,2633.6,2633.5,8.57e-06]
[1748586063211,8.78107897,2633.6,2633.5,8.57e-06]
[1748586066508,3.78107897,2633.6,2633.5,8.57e-06]
[1748586066702,7.52707897,2633.6,2633.5,8.57e-06]
[1748586067207,7.52691087,2633.6,2633.5,8.57e-06]
[1748586070412,7.52691087,2633.6,2632.4,3.2078]
[1748586070413,11.76773087,2633.6,2632.4,3.2078]
[1748586070610,0.75947,2632.6,2632.5,0.6197]
[1748586070910,0.75947,2632.6,2632.5,1.9226]
[1748586071414,0.75946,2632.7,2632.5,1.9226]
[1748586071619,0.75946,2632.7,2632.5,2.68209]
[1748586072015,0.75947,2632.6,2632.5,2.68209]
[1748586072210,0.75947,2632.6,2632.5,1.9226]
[1748586076316,0.7595,2632.5,2632.4,3.2078]
[1748586076821,0.7595,2632.5,2632.2,6.2053]
[1748586076822,0.75956,2632.3,2632.2,1.8531]
[1748586078219,1.89874,2632.6,2631.8,0.6527]
[1748586078220,0.75967,2631.9,2631.8,0.6527]
[1748586078413,3.746,2631.9,2630.3,0.3798]
[1748586078611,3.2078,2631.0,2630.6,0.76005]
[1748586078911,3.2078,2631.0,2630.5,2.5337]
[1748586078912,0.75998,2630.9,2630.7,1.2219]
[1748586079114,3.2078,2631.1,2630.7,1.2219]
[1748586079317,3.2078,2631.1,2631.0,0.75993]
[1748586079619,0.75984,2631.4,2630.7,1.2219]
[1748586079620,0.75989,2631.2,2630.7,1.2219]
[1748586079818,6.91221,2631.8,2631.0,0.75993]
[1748586079819,3.2078,2631.1,2631.0,0.75993]
[1748586080012,3.2078,2631.1,2630.8,0.75996]
[1748586080314,3.2078,2631.1,2631.0,0.75993]
[1748586080511,3.2078,2631.1,2630.8,1.262]
[1748586080717,3.2078,2631.1,2630.9,0.75995]
[1748586080913,3.2078,2631.1,2631.0,1.262]
[1748586081721,3.2078,2631.1,2631.0,2.68153]
[1748586082018,3.2078,2631.1,2631.0,1.9216]
[1748586082225,3.2078,2631.1,2631.0,2.68153]
[1748586082519,3.2078,2631.1,2631.0,1.9216]
[1748586082722,3.2078,2631.1,2631.0,2.68153]
[1748586083123,3.2078,2631.1,2631.0,6.42853]
[1748586083322,3.2078,2631.1,2631.0,5.6686]
[1748586083510,3.2078,2631.1,2631.0,6.42853]
[1748586084518,3.2078,2631.1,2631.0,11.42853]
[1748586084830,3.2078,2631.5,2631.1,0.00851841]
[1748586085124,3.2078,2631.5,2631.1,0.63381841]
[1748586085425,3.2078,2631.5,2631.3,0.75982]
[1748586085620,3.2078,2631.5,2631.4,1.2233]
[1748586086322,3.96759,2631.5,2631.4,1.2233]
[1748586086520,3.2078,2631.5,2631.4,1.2233]
[1748586086915,3.2078,2631.5,2631.4,1.98312]
[1748586087718,3.2078,2631.5,2631.4,1.2233]
[1748586088327,3.96759,2631.5,2631.4,1.2233]
[1748586088523,3.2078,2631.5,2631.4,1.98312]
[1748586088728,0.75974,2631.7,2631.5,0.75978]
[1748586088923,0.75974,2631.7,2631.6,1.8999]
[1748586089232,0.75973,2631.7,2631.6,1.8999]
[1748586089520,0.75971,2631.8,2631.6,1.8999]
[1748586089718,0.75971,2631.8,2631.7,1.9261]
[1748586089920,0.75969,2631.9,2631.7,1.9261]
[1748586090115,0.75969,2631.9,2631.8,1.284]
[1748586090927,0.7597,2631.8,2631.7,0.6421]
[1748586091227,0.7597,2631.8,2631.7,1.9261]
[1748586092819,3.2078,2632.0,2631.1,3.97620841]
[1748586093025,0.75988,2631.2,2631.1,0.76842841]
[1748586093528,0.75983,2631.4,2631.2,0.75986]
[1748586093726,0.75983,2631.4,2631.3,2.01175]
[1748586093927,0.75982,2631.4,2631.3,1.2519]
[1748586094528,3.8666,2631.7,2631.3,1.2519]
[1748586094728,0.75981,2631.5,2631.3,2.01173]
[1748586095032,3.2078,2631.7,2631.4,0.75981]
[1748586095328,0.75978,2631.6,2631.5,1.8509]
[1748586095926,0.75968,2631.9,2631.5,1.8509]
[1748586096125,4.5242,2632.0,2631.6,1.39534]
[1748586096322,4.5242,2632.0,2631.7,1.2214]
[1748586096525,0.7597,2631.8,2631.7,1.2214]
[1748586100721,5.8437,2632.0,2631.4,0.75982]
[1748586101031,7.74287,2632.0,2631.4,2.671]
[1748586101236,7.74287,2632.0,2631.5,0.75978]
[1748586101437,0.75979,2631.6,2631.4,2.671]
[1748586101639,0.75979,2631.5,2631.4,1.9112]
[1748586102432,0.94979,2631.5,2631.4,1.9112]
[1748586104234,0.94979,2631.5,2631.4,2.67102]
[1748586104446,0.19,2631.5,2631.4,2.67102]
[1748586105738,0.19,2631.5,2631.4,6.49202]
[1748586107635,0.94979,2631.5,2631.4,1.9112]
[1748586107837,0.94979,2631.5,2631.4,5.7322]
[1748586108035,0.94979,2631.5,2631.4,6.49202]
[1748586108434,0.19,2631.5,2631.4,6.49202]
[1748586108636,0.94979,2631.5,2631.4,1.9112]
[1748586108841,0.94979,2631.5,2631.4,5.7322]
[1748586109739,0.19,2631.5,2631.4,6.49202]
[1748586109940,0.94979,2631.5,2631.4,5.7322]
[1748586110535,0.19,2631.5,2631.4,6.56195857]
[1748586111037,0.94979,2631.5,2631.4,1.98113857]
[1748586111237,0.94979,2631.5,2631.4,5.80213857]
[1748586111642,0.19,2631.5,2631.4,6.56195857]
[1748586112446,0.19,2631.5,2631.4,2.74095857]
[1748586112648,0.19,2631.5,2631.4,6.56195857]
[1748586116538,0.19,2631.5,2631.4,2.74095857]
[1748586116737,0.19,2631.5,2631.4,6.56195857]
[1748586123460,0.00569379,2632.1,2631.6,1.89941]
[1748586123660,0.00569379,2632.1,2632.0,0.75965]
[1748586123850,0.00569379,2632.1,2632.0,4.55665]
[1748586124957,3.79e-06,2632.1,2632.0,12.76445]
[1748586125348,0.611,2632.8,2632.7,0.56954]
[1748586126357,1.37041,2632.8,2632.6,4.55645]
[1748586126658,1.37042,2632.8,2632.7,0.75944]
[1748586126859,0.611,2632.8,2632.7,0.75944]
[1748586127264,0.611,2632.8,2632.7,2.07824]
[1748586127957,1.37041,2632.8,2632.7,1.3188]
[1748586128156,0.611,2632.8,2632.7,1.3188]
[1748586128359,0.611,2632.8,2632.7,2.07824]
[1748586129866,1.5956,2632.9,2632.7,2.07823]
[1748586130054,0.8362,2632.9,2632.8,1.2092]
[1748586130259,0.1899,2632.9,2632.8,1.96861]
[1748586135770,3.2078,2633.5,2633.4,0.75924]
[1748586137467,3.2078,2633.5,2633.4,2.01444]
[1748586139377,0.00569379,2633.7,2633.6,0.75918]
[1748586140970,0.6134,2634.1,2633.6,5.0]
[1748586141173,0.6134,2634.1,2634.0,0.75907]
[1748586143471,0.75904,2634.1,2633.9,2.09528]
[1748586143874,4.58362,2634.2,2634.0,0.75906]
[1748586144067,3.8246,2634.2,2633.8,0.00569379]
[1748586144269,3.9669,2633.9,2633.8,0.00569379]
[1748586145161,8.9669,2633.9,2633.8,0.00569379]
[1748586145367,3.9669,2633.9,2633.8,0.00569379]
[1748586146771,8.9669,2633.9,2633.8,0.00569379]
[1748586147373,3.9669,2633.9,2633.8,0.00569379]
[1748586147580,8.9669,2633.9,2633.8,0.00569379]
[1748586148068,0.75921,2633.5,2633.4,0.06993857]
[1748586148273,3.96701,2633.5,2633.4,0.06993857]
[1748586152381,0.75921,2633.5,2633.4,0.06993857]
[1748586152975,0.75921,2633.5,2633.4,0.82917857]
[1748586153174,0.75921,2633.5,2633.4,0.06993857]
[1748586153474,2.098,2633.6,2633.4,0.06993857]
[1748586153672,1.2579,2633.7,2633.4,0.82916857]
[1748586153883,0.7592,2633.6,2633.5,1.2163]
[1748586154783,0.75918,2633.6,2633.5,1.2163]
[1748586155681,2.01707,2633.7,2633.5,1.97551]
[1748586155883,0.75918,2633.6,2633.5,1.2163]
[1748586156076,1.2579,2633.7,2633.5,1.2163]
[1748586156379,1.2579,2633.7,2633.6,0.75918]
[1748586156579,2.01706,2633.7,2633.5,1.2163]
[1748586156978,2.01706,2633.7,2633.5,1.9755]
[1748586157182,1.2579,2633.7,2633.6,0.75918]
[1748586157381,0.75918,2633.6,2633.5,1.2163]
[1748586158983,2.01707,2633.7,2633.5,1.2163]
[1748586159186,1.2579,2633.7,2633.5,1.2163]
[1748586159384,2.01708,2633.7,2633.5,1.2163]
[1748586159585,2.01708,2633.7,2633.5,1.9755]
[1748586159789,2.01708,2633.7,2633.6,0.75918]
[1748586159790,1.2579,2633.7,2633.6,0.75918]
[1748586160887,3.2078,2633.9,2633.5,1.2163]
[1748586161282,3.2078,2633.9,2633.6,0.75916]
[1748586161483,0.75914,2633.8,2633.7,1.233]
[1748586161781,3.96691,2633.9,2633.7,1.233]
[1748586161986,3.96691,2633.9,2633.7,1.99214]
[1748586162186,0.75913,2633.8,2633.7,1.99214]
[1748586162486,3.9669,2633.9,2633.7,0.75914]
[1748586163486,0.75913,2633.8,2633.6,0.75916]
[1748586164386,3.96692,2633.9,2633.6,0.75916]
[1748586164585,0.75913,2633.8,2633.6,0.75916]
[1748586164885,3.96692,2633.9,2633.6,0.75916]
[1748586165480,3.2078,2633.9,2633.6,0.75916]
[1748586165686,3.2078,2633.9,2633.4,4.03695857]
[1748586165884,0.75921,2633.6,2633.4,0.82915857]
[1748586166581,0.75921,2633.6,2633.5,0.75921]
[1748586166886,0.75921,2633.6,2633.4,0.82916857]
[1748586167086,0.75921,2633.6,2633.5,0.75921]
[1748586167592,0.6044,2633.7,2633.6,0.75918]
[1748586168278,1.36356,2633.7,2633.6,0.75918]
[1748586168687,0.75914,2633.8,2633.6,0.75918]
[1748586168885,2.63274,2633.8,2633.6,0.75918]
[1748586170287,0.75916,2633.7,2633.5,0.75919]
[1748586170489,0.75916,2633.7,2633.6,0.06993857]
[1748586170886,0.75916,2633.7,2633.6,0.82911857]
[1748586171085,0.75916,2633.7,2633.6,0.06993857]
[1748586171690,0.75916,2633.7,2633.6,0.82911857]
[1748586171991,0.6102,2633.8,2633.7,0.75916]
[1748586173292,3.96692,2633.9,2633.7,1.36663]
[1748586173680,0.75913,2633.8,2633.7,0.6075]
[1748586173890,3.9669,2633.9,2633.7,0.6075]
[1748586174086,0.75913,2633.8,2633.7,0.6075]
[1748586174290,3.9669,2633.9,2633.7,1.36663]
[1748586174491,3.2078,2633.9,2633.7,1.36663]
[1748586174681,3.2078,2633.9,2633.7,0.6075]
[1748586174885,3.96691,2633.9,2633.7,1.36664]
[1748586175184,3.2078,2633.9,2633.8,0.75913]
[1748586175395,3.96691,2633.9,2633.8,0.75913]
[1748586175583,3.2078,2633.9,2633.8,0.75913]
[1748586176093,0.75913,2633.8,2633.7,0.6075]
[1748586176386,3.96692,2633.9,2633.7,1.36665]
[1748586177091,3.96692,2633.9,2633.7,1.36664]
[1748586177289,3.2078,2633.9,2633.7,0.6075]
[1748586177488,3.2078,2633.9,2633.8,0.75913]
[1748586180387,0.63819379,2634.3,2633.7,7.6093]
[1748586180590,0.75902,2634.2,2634.0,0.75906]
[1748586180788,0.75902,2634.2,2634.1,1.8777]
[1748586181194,0.63819379,2634.3,2634.0,3.794]
[1748586181195,2.53566379,2634.3,2634.0,3.794]
[1748586181395,2.61984,2634.1,2634.0,3.794]
[1748586182196,1.39719379,2634.3,2634.0,4.55307]
[1748586182393,0.63819379,2634.3,2634.0,3.794]
[1748586182697,0.75901,2634.2,2634.1,1.8777]
[1748586183207,0.63819379,2634.3,2633.7,3.2078]
[1748586183390,0.75908,2634.0,2633.8,6.50213]
[1748586184502,0.75905,2634.1,2633.9,0.7591]
[1748586184798,2.01005,2634.1,2633.9,0.75909]
[1748586185295,2.01005,2634.1,2633.8,5.743]
[1748586185499,3.2078,2634.2,2634.1,0.75904]
[1748586186792,1.39718379,2634.3,2634.1,0.75904]
[1748586188087,0.75907,2634.0,2633.8,5.20251]
[1748586188298,0.6619,2633.9,2633.8,5.20253]
[1748586188506,0.6619,2633.9,2633.8,6.48673]
[1748586188697,1.98314,2634.1,2633.8,5.7276]
[1748586188995,2.64504,2634.1,2633.9,0.75909]
[1748586189197,1.2321,2634.0,2633.9,4.50909]
[1748586189594,1.316,2634.1,2634.0,0.75907]
[1748586189796,3.2078,2634.2,2634.1,0.75904]
[1748586192302,3.96683,2634.2,2634.1,1.3251]
[1748586192602,0.75904,2634.1,2633.9,3.75]
[1748586192803,0.75904,2634.1,2633.9,5.83418]
[1748586193105,1.41684,2634.1,2633.9,5.83418]
[1748586193402,0.6578,2634.1,2634.0,0.75907]
[1748586193899,0.6578,2634.1,2634.0,2.08417]
[1748586194405,0.6578,2634.1,2634.0,1.3251]
[1748586194903,0.6578,2634.1,2634.0,2.08417]
[1748586195197,3.2078,2634.2,2634.1,0.75904]
[1748586195402,3.2078,2634.2,2634.1,2.01354]
[1748586196594,0.75907,2634.0,2633.8,0.6504]
[1748586196799,0.75913,2633.8,2633.7,3.81893857]
[1748586197202,3.36443,2633.8,2633.7,3.81893857]
[1748586197803,1.2788,2633.8,2633.7,4.57809857]
[1748586198211,2.03793,2633.8,2633.7,4.57809857]
[1748586198507,2.03793,2633.8,2633.7,3.81893857]
[1748586198706,1.2788,2633.8,2633.7,4.57809857]
[1748586198907,0.75908,2634.0,2633.8,0.75911]
[1748586199210,0.7591,2633.9,2633.8,1.9621]
[1748586200001,1.40908,2634.0,2633.8,2.72123]
[1748586200201,0.7591,2633.9,2633.8,1.9621]
[1748586200901,0.7591,2633.9,2633.8,2.72123]
[1748586201807,3.8414,2634.2,2633.8,1.9621]
[1748586202007,4.60041,2634.2,2634.1,0.75904]
[1748586202208,4.60041,2634.2,2634.0,0.75905]
[1748586202805,4.60041,2634.2,2633.9,1.2202]
[1748586202806,4.60041,2634.2,2634.1,0.75904]
[1748586203107,0.75904,2634.1,2633.9,1.97928]
[1748586203310,0.75904,2634.1,2634.0,1.2202]
[1748586204306,4.60043,2634.2,2634.0,1.97927]
[1748586204804,4.60043,2634.2,2634.1,1.2233]
[1748586206809,6.23181531,2634.2,2634.0,0.75905]
[1748586207009,5.86223,2634.2,2634.0,0.75905]
[1748586207198,5.86223,2634.2,2634.0,1.98235]
[1748586207713,4.60043,2634.2,2634.0,1.98235]
[1748586208408,3.8414,2634.2,2634.1,0.75904]
[1748586208608,3.2078,2634.2,2634.1,2.05074]
[1748586216111,3.2078,2634.2,2634.1,2.12067857]
[1748586218021,0.00569379,2634.3,2634.2,0.75901]
[1748586218212,0.6345,2634.9,2634.4,1.89733]
[1748586218415,0.6345,2634.9,2634.8,0.75884]
[1748586218617,1.76269791,2634.9,2634.8,0.75884]
[1748586219219,1.76267019,2634.9,2634.7,1.97315]
[1748586219521,0.6345,2634.9,2634.7,1.97315]
[1748586219921,0.6345,2634.9,2634.8,0.75884]
[1748586220222,1.76227808,2634.9,2634.8,0.75884]
[1748586220622,2.52109808,2634.9,2634.7,1.97314]
[1748586220824,1.39332,2634.9,2634.7,1.97314]
[1748586222422,0.6345,2634.9,2634.7,1.2143]
[1748586222923,1.39333,2634.9,2634.7,0.75887]
[1748586223126,1.239,2634.8,2634.7,0.75887]
[1748586225427,1.39331,2634.9,2634.7,0.75887]
[1748586226020,2.72201,2634.9,2634.7,0.75887]
[1748586226626,1.9632,2634.9,2634.8,0.75884]
[1748586226827,2.72202,2634.9,2634.7,0.75886]
[1748586227028,0.6345,2634.9,2634.8,0.75884]
[1748586227519,1.39331,2634.9,2634.7,1.98835]
[1748586227721,0.75884,2634.8,2634.7,1.98835]
[1748586227914,1.39333,2634.9,2634.7,1.98835]
[1748586228114,0.75884,2634.8,2634.7,1.2295]
[1748586228419,1.39333,2634.9,2634.7,1.98837]
[1748586228724,2.72203,2634.9,2634.7,1.98837]
[1748586228923,1.9632,2634.9,2634.7,0.75887]
[1748586229124,1.3003,2634.8,2634.7,0.75887]
[1748586230225,2.05914,2634.8,2634.7,0.82880857]
[1748586230525,1.3003,2634.8,2634.7,0.82880857]
[1748586230823,1.39333,2634.9,2634.7,0.82880857]
[1748586231129,0.6345,2634.9,2634.8,0.75884]
[1748586231324,1.39331,2634.9,2634.7,0.82878857]
[1748586232527,2.72521,2634.9,2634.7,0.82878857]
[1748586232724,1.9664,2634.9,2634.8,0.75884]
[1748586233030,0.6345,2634.9,2634.8,0.75884]
[1748586237728,1.39331,2634.9,2634.8,0.75884]
[1748586237926,0.6345,2634.9,2634.8,0.75884]
[1748586238626,1.39331,2634.9,2634.8,0.75884]
[1748586238829,2.68371,2634.9,2634.8,0.75884]
[1748586242730,0.6345,2634.9,2634.8,0.75884]
[1748586243029,0.6345,2634.9,2634.8,1.41124]
[1748586243832,0.6047,2635.0,2634.9,0.75881]
[1748586244031,1.73180769,2635.0,2634.9,0.75881]
[1748586244236,2.49060769,2635.0,2634.8,1.41123]
[1748586244535,1.12710769,2634.9,2634.8,1.41123]
[1748586245427,1.12710769,2634.9,2634.8,1.48116857]
[1748586246731,1.8732,2635.0,2634.9,0.75881]
[1748586246932,1.8732,2635.0,2634.8,0.72233857]
[1748586246933,3.75990027,2635.0,2634.8,0.72233857]
[1748586247232,2.63201,2635.0,2634.8,0.72233857]
[1748586247434,2.63201,2635.0,2634.9,0.75881]
[1748586247633,3.76030717,2635.0,2634.9,0.75881]
[1748586248232,1.73299717,2635.0,2634.9,0.75881]
[1748586248437,1.73299717,2635.0,2634.9,2.04461]
[1748586248841,1.12829717,2635.0,2634.9,5.25241]
[1748586249935,0.6455,2635.6,2635.5,0.75864]
[1748586250132,5.1626,2636.0,2635.5,3.2078]
[1748586250336,5.8081,2636.0,2635.5,3.2078]
[1748586250642,2.07713,2635.9,2635.7,0.75857]
[1748586250944,0.75855,2635.8,2635.6,2.59589]
[1748586251133,0.75858,2635.7,2635.6,1.8373]
[1748586251334,1.3186,2635.9,2635.6,2.5959]
[1748586251639,0.75857,2635.8,2635.6,2.5959]
[1748586252336,1.2817,2636.0,2635.6,1.8373]
[1748586252531,0.75853,2635.9,2635.7,0.75858]
[1748586252736,0.75853,2635.9,2635.7,1.2175]
[1748586253136,0.75853,2635.9,2635.8,0.75855]
[1748586253333,2.0402,2636.0,2635.9,0.75852]
[1748586253634,0.00569379,2636.1,2636.0,0.75849]
[1748586253834,0.00569379,2636.1,2636.0,3.2078]
[1748586254037,0.76415379,2636.1,2635.9,0.75851]
[1748586254234,0.00569379,2636.1,2635.9,0.75852]
[1748586254440,0.6165,2636.0,2635.8,1.3025]
[1748586254640,0.6165,2636.0,2635.8,2.06103]
[1748586255036,0.6165,2636.0,2635.6,3.8276]
[1748586255242,5.10418,2635.8,2635.0,3.2078]
[1748586255541,3.81532,2635.7,2635.0,8.9163]
[1748586255739,0.75867,2635.4,2635.1,0.75874]
[1748586256241,1.8672,2635.6,2635.0,6.46727]
[1748586256431,4.4982,2635.5,2635.0,1.9685]
[1748586256636,1.2904,2635.4,2635.0,1.9685]
[1748586256843,0.75874,2635.2,2635.0,0.75877]
[1748586257338,0.648,2635.1,2635.0,0.75877]
[1748586257741,1.40675,2635.1,2634.9,3.74]
[1748586257947,0.75878,2635.0,2634.9,3.74]
[1748586258143,1.9588,2635.0,2634.9,3.74]
[1748586258845,2.71758,2635.0,2634.9,3.74]
[1748586259044,2.71758,2635.0,2634.9,0.75881]
[1748586259045,1.9588,2635.0,2634.9,0.75881]
[1748586259344,1.9588,2635.0,2634.8,0.68903857]
[1748586259545,1.9588,2635.0,2634.8,2.72335857]
[1748586259843,1.9588,2635.0,2634.8,2.65342]
[1748586260441,2.71759,2635.0,2634.8,1.8946]
[1748586260940,1.9588,2635.0,2634.9,0.06993857]
[1748586261945,2.71758,2635.0,2634.9,0.06993857]
[1748586262246,0.75867,2635.4,2635.0,0.75878]
[1748586262547,0.75874,2635.2,2635.0,0.75878]
[1748586262742,0.75874,2635.2,2635.1,1.26]
[1748586263041,3.8773,2635.8,2635.1,4.4678]
[1748586263243,1.76824993,2635.7,2635.2,0.6157]
[1748586263442,0.75862,2635.6,2635.3,2.01867]
[1748586263643,0.75862,2635.6,2635.4,0.75866]
[1748586263836,0.75862,2635.6,2635.4,2.01866]
[1748586264041,0.75862,2635.6,2635.4,1.26]
[1748586265036,0.75864,2635.5,2635.4,1.26]
[1748586265547,0.75869,2635.3,2635.2,0.6157]
[1748586266043,0.75868,2635.4,2635.2,2.63232]
[1748586266245,1.8936,2635.7,2635.2,1.8736]
[1748586266447,0.75868,2635.4,2635.2,2.63232]
[1748586266641,0.75868,2635.4,2635.3,1.2579]
[1748586267040,1.8936,2635.7,2635.1,3.2078]
[1748586267041,0.75869,2635.3,2635.1,3.2078]
[1748586267245,1.42799,2635.3,2635.1,3.2078]
[1748586267445,1.42801,2635.3,2635.1,4.4657]
[1748586267941,1.42801,2635.3,2635.1,5.22445]
[1748586268136,1.42801,2635.3,2635.1,4.4657]
[1748586268343,1.42801,2635.3,2635.1,5.22445]
[1748586268646,0.75875,2635.1,2635.0,3.74]
[1748586269347,0.6064,2635.2,2635.0,3.74]
[1748586269647,1.42802,2635.3,2635.1,0.75874]
[1748586269849,1.42802,2635.3,2635.1,0.75872]
[1748586270149,1.42802,2635.3,2635.2,1.9161]
[1748586270949,1.42802,2635.3,2635.2,0.6475]
[1748586276051,1.42802,2635.3,2635.2,0.71743857]
[1748586278751,1.42802,2635.3,2635.2,0.06993857]
[1748586278752,2.69652,2635.3,2635.2,0.06993857]
[1748586280354,3.81754767,2635.3,2635.2,0.06993857]
[1748586280757,2.69652,2635.3,2635.2,0.06993857]
[1748586281257,0.75881,2634.9,2634.8,3.737]
[1748586282251,0.75884,2634.8,2634.7,3.8137]
[1748586283648,0.75884,2634.8,2634.7,4.57256]
[1748586283850,0.75884,2634.8,2634.7,5.80236]
[1748586284057,0.7588,2635.0,2634.7,5.0435]
[1748586284257,0.7588,2635.0,2634.8,1.2298]
[1748586284463,0.7588,2635.0,2634.9,0.75881]
[1748586284759,0.75874,2635.2,2635.1,0.75874]
[1748586285153,1.88117524,2635.2,2635.1,0.75874]
[1748586285551,1.88117524,2635.2,2635.0,1.98857]
[1748586285857,0.75874,2635.2,2635.0,1.98857]
[1748586286163,0.75874,2635.2,2635.1,1.98855]
[1748586286455,0.75874,2635.2,2635.1,1.2298]
[1748586287057,1.88131414,2635.2,2635.1,1.2298]
[1748586287945,0.75871,2635.3,2635.1,1.98855]
[1748586288152,0.75871,2635.3,2635.2,1.29903857]
[1748586288353,1.88100951,2635.3,2635.2,1.29903857]
[1748586289954,1.88100951,2635.3,2635.2,0.06993857]
[1748586290351,2.66351,2635.3,2635.2,0.06993857]
[1748586290553,3.7858254,2635.3,2635.2,0.06993857]
[1748586294451,2.5367254,2635.3,2635.2,0.06993857]
[1748586294757,2.53749741,2635.3,2635.2,0.06993857]
[1748586296361,1.77878741,2635.3,2635.2,0.82865857]
[1748586296765,2.53747741,2635.3,2635.2,0.06993857]
[1748586298965,2.53789128,2635.3,2635.2,0.06993857]
[1748586299561,2.53789128,2635.3,2635.2,0.82865857]
[1748586299961,2.53789128,2635.3,2635.2,2.10395857]
[1748586300171,2.53789128,2635.3,2635.2,0.06993857]
[1748586300465,1.77920128,2635.3,2635.2,0.06993857]
[1748586300661,1.12350128,2635.3,2635.2,0.06993857]
[1748586300863,1.88219128,2635.3,2635.2,2.10395857]
[1748586301165,1.88219128,2635.3,2635.2,0.06993857]
[1748586301463,3.13809128,2635.3,2635.2,0.06993857]
[1748586301668,3.13801721,2635.3,2635.2,0.06993857]
[1748586303275,8.13801721,2635.3,2635.2,0.06993857]
[1748586305663,7.01459,2635.3,2635.2,0.06993857]
[1748586305971,0.75884,2634.8,2634.7,3.2078]
[1748586306569,1.88160338,2634.8,2634.7,3.2078]
[1748586306771,3.81040338,2634.8,2634.7,3.2078]
[1748586307167,1.88160338,2634.8,2634.7,3.96667]
[1748586307367,0.6326,2635.1,2634.7,5.24307]
[1748586307569,0.75883,2634.9,2634.8,1.41934]
[1748586307869,1.88109504,2634.9,2634.8,2.69574]
[1748586308077,1.12226504,2634.9,2634.8,2.69574]